fUSD/lending_fUSD_20240115
["ID","MTS","AMOUNT","RATE_DAILY","PERIOD"]
[311685888,1705331439818,-151.0,0.00023,7]
[311685890,1705331439827,-151.0,0.00023,7]
[311685892,1705331439837,-151.0,0.00023,7]
[311685894,1705331439846,-151.0,0.00023,7]
[311685896,1705331439856,-151.0,0.00023,7]
[311685898,1705331439866,-151.0,0.00023,2]
[311685900,1705331439876,-151.0,0.00023,7]
[311685902,1705331439885,-151.0,0.00023,7]
[311685904,1705331439895,-151.0,0.00023,7]
[311685906,1705331439905,-151.0,0.00023,7]
[311685907,1705331439914,-151.0,0.00023,7]
[311685908,1705331439923,-151.0,0.00023,7]
[311685909,1705331439933,-155.61353,0.00023,7]
[311685910,1705331439942,-155.61353,0.00023,7]
[311685911,1705331439952,-1500.0,0.00023,2]
[311685912,1705331439961,-150.0,0.00023,2]
[311685913,1705331439970,-151.0,0.00023,7]
[311685914,1705331439979,-151.0,0.00023,7]
[311685915,1705331439989,-156.69,0.00023027,2]
[311685917,1705331439998,-970.17278908,0.0002317,2]
[311685919,1705331440008,-427.78181221,0.00023173,2]
[311685921,1705331440017,-4475.7795771,0.00023186,2]
[311685923,1705331440026,-150.29581249,0.00023212,2]
[311685925,1705331440035,-905.55069911,0.00023226,2]
[311685927,1705331440044,-153.83,0.00023253,2]
[311685929,1705331440053,-156.69,0.0002327,2]
[311685931,1705331440063,-500.0,0.00023288,4]
[311685935,1705331440072,-500.0,0.00023288,4]
[311685939,1705331440082,-271.73711723,0.00023288,4]
[311685943,1705331440091,-500.0,0.00023288,4]
[311685947,1705331440102,-262.89399451,0.00023288,4]
[311685950,1705331440111,-382.51933196,0.00023288,4]
[311685952,1705331440120,-302.14282982,0.00023288,4]
[311685954,1705331440129,-546.76150926,0.00023288,4]
[311685957,1705331440138,-500.0,0.00023288,4]
[311685959,1705331440147,-500.0,0.00023288,4]
[311685961,1705331440156,-500.0,0.00023288,2]
[311685963,1705331440167,-500.0,0.00023288,2]
[311685965,1705331440176,-500.0,0.00023288,2]
[311685967,1705331440188,-500.0,0.00023288,2]
[311685969,1705331440198,-563.32753699,0.00023288,2]
[311685971,1705331440207,-500.0,0.00023288,2]
[311685973,1705331440216,-500.0,0.00023288,2]
[311685975,1705331440225,-500.0,0.00023288,2]
[311685977,1705331440234,-500.0,0.00023288,2]
[311685979,1705331440244,-500.0,0.00023288,2]
[311685981,1705331440254,-500.0,0.00023288,2]
[311685983,1705331440264,-500.0,0.00023288,2]
[311685985,1705331440273,-500.0,0.00023288,2]
[311685987,1705331440283,-357.72464991,0.00023288,2]
[311685989,1705331440292,-500.0,0.00023288,2]
[311685991,1705331440301,-500.0,0.00023288,2]
[311685993,1705331440311,-500.0,0.00023288,2]
[311685995,1705331440320,-374.54979236,0.00023288,4]
[311685997,1705331440330,-196.94590558,0.00023288,2]
[311685999,1705331440340,-285.39470842,0.00023288,4]
[311686001,1705331440349,-188.51980185,0.00023288,2]
[311686003,1705331440359,-391.09139677,0.00023288,4]
[311686005,1705331440368,-500.0,0.00023288,4]
[311686007,1705331440377,-174.02462915,0.00023288,4]
[311686009,1705331440386,-500.0,0.00023288,4]
[311686012,1705331440396,-487.57230347,0.00023288,4]
[311686014,1705331440406,-448.38069114,0.00023288,4]
[311686015,1705331440415,-202.0,0.00023431,3]
[311686018,1705331440425,-427.78181221,0.00023445,2]
[311686020,1705331440436,-4475.7795771,0.00023471,2]
[311686022,1705331440445,-156.69,0.00023512,2]
[311686024,1705331440454,-150.29581249,0.00023524,2]
[311686026,1705331440463,-153.83,0.00023527,2]
[311686028,1705331440473,-427.78181221,0.00023718,2]
[311686030,1705331440482,-156.69,0.00023755,2]
[311686032,1705331440492,-4475.7795771,0.00023757,2]
[311686034,1705331440502,-153.83,0.000238,2]
[311686036,1705331440512,-150.29581249,0.00023835,2]
[311686038,1705331440522,-336.68,0.00023837,2]
[311686040,1705331440532,-153.1,0.00023841,2]
[311686042,1705331440541,-427.78181221,0.00023991,2]
[311686044,1705331440550,-156.69,0.00023997,2]
[311686046,1705331440560,-201.0123456,0.00024,2]
[311686047,1705331440569,-431.27928573,0.00024,2]
[311686049,1705331440578,-4475.7795771,0.00024043,2]
[311686051,1705331440587,-156.6,0.00024065,2]
[311686053,1705331440597,-153.83,0.00024074,2]
[311686055,1705331440605,-158.09,0.00024075,2]
[311686057,1705331440614,-157.87,0.00024093,2]
[311686059,1705331440625,-155.22626387,0.000241,2]
[311686061,1705331440634,-150.29581249,0.00024147,2]
[311686063,1705331440643,-163.72,0.00024175,2]
[311686065,1705331440651,-427.78181221,0.00024264,2]
[311686068,1705331440661,-202.0,0.00024281,4]
[311686070,1705331440670,-4475.7795771,0.00024329,2]
[311686071,1705331440679,-150.29581249,0.00024459,2]
[311686074,1705331440690,-454.52,0.00024465,2]
[311686075,1705331440701,-427.78181221,0.00024536,2]
[311686077,1705331440710,-882.0,0.00024614,2]
[311686079,1705331440719,-4475.7795771,0.00024614,2]
[311686082,1705331440729,-788.17,0.00024624,2]
[311686084,1705331440738,-250.0,0.00024658,2]
[311686086,1705331440747,-500.0,0.000247,2]
[311686088,1705331440756,-150.29581249,0.00024771,2]
[311686089,1705331440766,-427.78181221,0.00024809,2]
[311686093,1705331440789,-336.68,0.00024815,2]
[311686096,1705331440808,-4475.7795771,0.000249,2]
[311686099,1705331440826,-163.69478431,0.00024999,2]
[311686101,1705331440844,-7999.99,0.00025,4]
[311686104,1705331440860,-383.95890189,0.00025,2]
[311686105,1705331440879,-374.60559964,0.00025,2]
[311686106,1705331440895,-1070.18909292,0.00025,2]
[311686107,1705331440913,-630.56759467,0.00025,2]
[311686108,1705331440933,-167.26875195,0.00025,2]
[311686109,1705331440951,-693.44896214,0.00025,2]
[311686110,1705331440971,-505444.87458687,0.00025,2]
[311686111,1705331440987,-303.27668532,0.00025,2]
[311686112,1705331441001,-201.90785395,0.00025,2]
[311686113,1705331441018,-1583.17165262,0.00025,2]
[311686115,1705331441033,-1139.82274104,0.00025,2]
[311686117,1705331441047,-1350.0,0.00025,3]
[311686118,1705331441068,-427.78181221,0.00025082,2]
[311686119,1705331441082,-150.29581249,0.00025082,2]
[311686120,1705331441097,-202.0,0.00025132,5]
[311686121,1705331441112,-427.78181221,0.00025355,2]
[311686122,1705331441126,-150.29581249,0.00025394,2]
[311686123,1705331441141,-427.78181221,0.00025627,2]
[311686124,1705331441156,-150.29581249,0.00025706,2]
[311686125,1705331441171,-336.68,0.00025794,2]
[311686126,1705331441186,-32803.0,0.000258,2]
[311686127,1705331441201,-3274.0,0.000259,2]
[311686128,1705331441216,-427.78181221,0.000259,2]
[311686129,1705331441230,-202.0,0.00025982,7]
[311686130,1705331441248,-5000.0,0.00026,2]
[311686131,1705331441263,-151.0,0.00026,7]
[311686132,1705331441278,-247.488893,0.00026,7]
[311686133,1705331441294,-150.29581249,0.00026018,2]
[311686134,1705331441309,-150.0,0.00026079,2]
[311686135,1705331441324,-426.0,0.00026135,2]
[311686136,1705331441339,-996.0,0.00026135,2]
[311686137,1705331441354,-235.0,0.00026135,2]
[311686138,1705331441371,-155.56,0.00026208,2]
[311686139,1705331441386,-214.0,0.00026236,2]
[311686140,1705331441400,-163.72,0.00026253,2]
[311686141,1705331441414,-157.91,0.00026266,2]
[311686142,1705331441430,-179.74043994,0.00026313,3]
[311686143,1705331441447,-228.6346456,0.00026313,3]
[311686144,1705331441462,-193.21089677,0.00026313,3]
[311686145,1705331441479,-209.04336608,0.00026313,3]
[311686146,1705331441495,-4881.82558552,0.00026313,3]
[311686147,1705331441511,-157.73214684,0.00026313,3]
[311686148,1705331441526,-2636.65403092,0.00026313,3]
[311686149,1705331441541,-150.29581249,0.00026329,2]
[311686150,1705331441556,-151.46565387,0.00026479,2]
[311686151,1705331441571,-1000.0,0.00026533,2]
[311686152,1705331441586,-151.0,0.00026556,7]
[311686153,1705331441603,-151.0,0.00026556,7]
[311686154,1705331441618,-151.0,0.00026556,7]
[311686155,1705331441633,-151.0,0.00026556,7]
[311686156,1705331441648,-7369.08,0.00026575,2]
[311686157,1705331441663,-154.11,0.00026575,2]
[311686158,1705331441678,-297.08196391,0.000266,2]
[311686159,1705331441696,-151.0,0.000266,7]
[311686160,1705331441711,-151.0,0.000266,7]
[311686161,1705331441727,-155.61353,0.000266,7]
[311686162,1705331441742,-155.61353,0.000266,7]
[311686163,1705331441757,-150.29581249,0.00026641,2]
[311686164,1705331441773,-186.6161442,0.00026701,2]
[311686165,1705331441787,-454.52,0.00026729,2]
[311686166,1705331441802,-336.68,0.00026772,2]
[311686167,1705331441816,-202.0,0.00026833,8]
[311686168,1705331441831,-200.0,0.0002694,2]
[311686169,1705331441846,-150.29581249,0.00026953,2]
[311686170,1705331441862,-416.88588033,0.00027,2]
[311686171,1705331441877,-1400.0,0.00027,3]
[311686172,1705331441891,-129289.95553674,0.00027,2]
[311686173,1705331441906,-150.29581249,0.00027265,2]
[311686174,1705331441921,-882.0,0.00027349,2]
[311686175,1705331441935,-788.17,0.0002736,2]
[311686176,1705331441950,-2500.0,0.00027397,4]
[311686177,1705331441965,-250.0,0.00027397,2]
[311686178,1705331441980,-250.0,0.000274,2]
[311686179,1705331441994,-5692.02220698,0.000274,2]
[311686180,1705331442009,-150.29581249,0.00027576,2]
[311686181,1705331442025,-202.0,0.00027683,9]
[311686182,1705331442039,-336.68,0.00027751,2]
[311686183,1705331442054,-150.29581249,0.00027888,2]
[311686184,1705331442069,-150.0,0.00027919,2]
[311686185,1705331442084,-200.0,0.00027929,2]
[311686186,1705331442100,-508.50114416,0.00027929,2]
[311686187,1705331442115,-737.96520582,0.00028,2]
[311686188,1705331442129,-202.92894676,0.00028,2]
[311686189,1705331442144,-4124.32590269,0.00028,7]
[311686190,1705331442163,-150.29581249,0.000282,2]
[311686191,1705331442178,-150.29581249,0.00028512,2]
[311686192,1705331442195,-202.0,0.00028534,11]
[311686193,1705331442209,-151.0,0.00028627,7]
[311686194,1705331442224,-152.264614,0.00028627,7]
[311686195,1705331442239,-254.713257,0.00028627,7]
[311686196,1705331442254,-151.0,0.00028627,7]
[311686197,1705331442269,-151.0,0.00028627,7]
[311686198,1705331442284,-151.0,0.00028627,2]
[311686199,1705331442299,-336.68,0.00028729,2]
[311686200,1705331442313,-1036.568125,0.000288,2]
[311686201,1705331442328,-150.29581249,0.00028824,2]
[311686202,1705331442343,-454.52,0.00028993,2]
[311686203,1705331442357,-11492.07124304,0.00029,15]
[311686204,1705331442372,-1450.0,0.00029,3]
[311686205,1705331442388,-200.0,0.00029002,3]
[311686206,1705331442403,-17703.53401034,0.000291,2]
[311686207,1705331442419,-150.29581249,0.00029135,2]
[311686208,1705331442430,-426.0,0.00029135,2]
[311686209,1705331442442,-996.0,0.00029135,2]
[311686210,1705331442452,-214.874,0.00029135,2]
[311686211,1705331442461,-214.0,0.00029236,2]
[311686212,1705331442470,-2390.39323209,0.00029321,2]
[311686213,1705331442479,-202.0,0.00029384,12]
[311686215,1705331442489,-150.29581249,0.00029447,2]
[311686216,1705331442499,-738.402504,0.00029468,2]
[311686217,1705331442508,-214850.92301594,0.000295,3]
[311686218,1705331442518,-150.0,0.00029707,2]
[311686219,1705331442527,-336.68,0.00029708,2]
[311686220,1705331442537,-150.0,0.00029708,2]
[311686221,1705331442546,-150.0,0.00029711,2]
[311686226,1705331442910,-150.0,0.00029717,2]
[311686227,1705331442931,-150.0,0.00029727,2]
[311686228,1705331442963,-150.0,0.00029732,2]
[311686229,1705331442986,-150.0,0.00029735,2]
[311686230,1705331442995,-204.97303821,0.00029736,2]
[311686231,1705331443004,-150.0,0.00029744,2]
[311686232,1705331443013,-150.0,0.00029751,2]
[311686233,1705331443022,-150.29581249,0.00029759,2]
[311686234,1705331443031,-150.0,0.00029761,2]
[311686235,1705331443040,-150.0,0.00029762,2]
[311686236,1705331443048,-25000.0,0.0002977,2]
[311686237,1705331443057,-150.0,0.00029775,2]
[311686238,1705331443066,-150.0,0.00029789,2]
[311686239,1705331443075,-150.0,0.00029797,2]
[311686240,1705331443084,-150.0,0.00029798,2]
[311686241,1705331443092,-722.26,0.000298,2]
[311686242,1705331443101,-175.39581942,0.000298,2]
[311686243,1705331443110,-150.0,0.00029804,2]
[311686244,1705331443119,-150.0,0.00029806,2]
[311686245,1705331443127,-150.0,0.00029814,2]
[311686246,1705331443136,-150.0,0.00029819,2]
[311686247,1705331443145,-150.0,0.00029836,2]
[311686248,1705331443154,-150.0,0.00029838,2]
[311686249,1705331443162,-150.0,0.00029839,2]
[311686250,1705331443171,-150.0,0.00029841,2]
[311686251,1705331443180,-150.0,0.00029855,2]
[311686252,1705331443191,-150.0,0.00029862,2]
[311686253,1705331443200,-150.0,0.00029871,2]
[311686254,1705331443208,-150.0,0.00029893,2]
[311686255,1705331443218,-536.15064755,0.00029898,2]
[311686256,1705331443227,-12286.92952067,0.00029898,2]
[311686257,1705331443236,-273.46864332,0.00029898,2]
[311686258,1705331443246,-150.0,0.00029899,2]
[311686259,1705331443255,-4513.07018382,0.000299,2]
[311686260,1705331443264,-150.0,0.00029917,2]
[311686261,1705331443274,-150.0,0.00029923,2]
[311686262,1705331443283,-150.0,0.00029927,2]
[311686263,1705331443292,-150.0,0.0002993,2]
[311686264,1705331443301,-150.0,0.00029947,2]
[311686265,1705331443311,-150.0,0.00029959,2]
[311686266,1705331443320,-150.0,0.00029967,2]
[311686267,1705331443329,-150.0,0.00029968,2]
[311686268,1705331443338,-854.93744442,0.0002998,3]
[311686269,1705331443348,-1853.73995266,0.0002998,14]
[311686270,1705331443357,-480371.96446934,0.0002998,2]
[311686271,1705331443366,-151.0,0.0002998,7]
[311686272,1705331443375,-151.0,0.0002998,7]
[311686273,1705331443384,-151.0,0.0002998,7]
[311686274,1705331443393,-151.0,0.0002998,2]
[311686275,1705331443402,-151.0,0.0002998,7]
[311686276,1705331443411,-151.0,0.0002998,7]
[311686277,1705331443421,-151.0,0.0002998,7]
[311686278,1705331443430,-151.0,0.0002998,7]
[311686279,1705331443441,-151.0,0.0002998,7]
[311686280,1705331443450,-151.0,0.0002998,7]
[311686281,1705331443459,-155.61353,0.0002998,7]
[311686282,1705331443468,-155.61353,0.0002998,7]
[311686284,1705331443477,-151.0,0.0002998,7]
[311686286,1705331443487,-51091.96550742,0.00029996,2]
[311686288,1705331443496,-93100.44200384,0.00029999,2]
[311686290,1705331443505,-100000.0,0.0003,2]
[311686292,1705331443514,-2625.47882106,0.0003,4]
[311686294,1705331443524,-9631.27866074,0.0003,2]
[311686296,1705331443534,-2500.0,0.0003,2]
[311686298,1705331443543,-582.14390202,0.0003,2]
[311686300,1705331443552,-558.1753081,0.0003,4]
[311686302,1705331443562,-679.05145156,0.0003,4]
[311686303,1705331443571,-19052.56985094,0.0003,4]
[311686304,1705331443581,-1757.38758486,0.0003,4]
[311686305,1705331443590,-2557.50378318,0.0003,4]
[311686306,1705331443599,-1574.60468839,0.0003,2]
[311686307,1705331443608,-83353.65956648,0.0003,30]
[311686308,1705331443617,-308636.97302582,0.0003,4]
[311686309,1705331443627,-2903.75,0.0003,2]
[311686310,1705331443635,-1000.0,0.0003,30]
[311686311,1705331443645,-362560.42933245,0.0003,3]
[311686312,1705331443674,-1505.52984001,0.0003,3]
[311686313,1705331443686,-8509.04674316,0.0003,3]
[311686314,1705331443697,-9732.08710796,0.0003,3]
[311686315,1705331444310,-1768.97282519,0.000229,2]
[311686316,1705331444371,-3938.81341229,0.000229,2]
[311686317,1705331444381,-1338.67861683,0.0003,3]
[311686645,1705331449678,-629.56275746,0.0003,3]
[311686646,1705331449691,-376.07194504,0.0003,3]
[311686647,1705331449709,-681.02717481,0.0003,3]
[311686648,1705331449722,-4158.6476462,0.0003,3]
[311686649,1705331450441,-262.0,0.0003,3]
[311686650,1705331450455,-4546.16192436,0.0003,3]
[311686651,1705331450468,-2370.98997071,0.0003,3]
[311686652,1705331450648,-3329.76694101,0.0003,3]
[311686653,1705331450658,-3180.0,0.0003,10]
[311686654,1705331450668,-2000.0,0.0003,15]
[311686655,1705331450678,-2000.0,0.0003,10]
[311686656,1705331450688,-240.965972,0.0003,7]
[311686657,1705331450699,-211.602703,0.0003,7]
[311686658,1705331450709,-153.790289,0.0003,7]
[311686659,1705331450719,-151.0,0.0003,2]
[311686660,1705331450728,-151.0,0.0003,7]
[311686661,1705331450738,-151.0,0.0003,7]
[311686662,1705331450748,-151.0,0.0003,7]
[311686663,1705331450758,-151.0,0.0003,7]
[311686664,1705331450767,-472.89198713,0.0003,2]
[311686665,1705331450779,-58.34856187,0.0003,2]
[311686666,1705331450789,-157.71,0.0003,2]
[311686667,1705331450798,-157.71,0.0003,2]
[311686668,1705331450808,-200.0,0.0003,2]
[311686669,1705331450817,-151.0,0.0003,7]
[311686670,1705331450827,-151.0,0.0003,7]
[311686671,1705331450836,-155.61353,0.0003,7]
[311686672,1705331450846,-155.61353,0.0003,7]
[311686673,1705331450855,-3000.0,0.0003,2]
[311686674,1705331450864,-1914.2397507,0.0003,2]
[311686675,1705331450876,-683.43254427,0.0003,2]
[311686676,1705331450888,-402.32770503,0.0003,2]
[311686677,1705331450898,-3000.0,0.0003,2]
[311686678,1705331450907,-3000.0,0.0003,2]
[311686679,1705331450917,-3000.0,0.0003,2]
[311686680,1705331450927,-3000.0,0.0003,2]
[311686681,1705331450937,-1000.0,0.0003,2]
[311686682,1705331450949,-176.46,0.0003,2]
[311686683,1705331450958,-176.46,0.0003,2]
[311686684,1705331450969,-176.46,0.0003,2]
[311686685,1705331450978,-176.46,0.0003,2]
[311686686,1705331450988,-176.46,0.0003,2]
[311686687,1705331450998,-176.46,0.0003,2]
[311686688,1705331451008,-176.46,0.0003,2]
[311686689,1705331451017,-176.46,0.0003,2]
[311686690,1705331451027,-176.46,0.0003,2]
[311686691,1705331451036,-176.46,0.0003,2]
[311686692,1705331451046,-176.46,0.0003,2]
[311686693,1705331451055,-176.46,0.0003,2]
[311686694,1705331451065,-151.0,0.0003,7]
[311686695,1705331451075,-1000.0,0.0003,2]
[311686696,1705331451084,-4741.00740011,0.00030006,4]
[311686697,1705331451094,-309.18374779,0.00030006,7]
[311686698,1705331451103,-3416.38758488,0.00030006,3]
[311686699,1705331451112,-357.55520178,0.00030006,2]
[311686700,1705331451121,-450.0,0.0003002,3]
[311686701,1705331451130,-150.29581249,0.00030071,2]
[311686702,1705331451140,-882.0,0.00030084,2]
[311686703,1705331451149,-788.17,0.00030096,2]
[311686704,1705331451158,-251.67232882,0.000301,4]
[311686705,1705331451167,-1000.0,0.000301,2]
[311686706,1705331451177,-151.0,0.00030133,120]
[311686707,1705331451186,-153.84,0.00030137,2]
[311686708,1705331451196,-4003.0,0.00030137,3]
[311686709,1705331451206,-1000.0,0.000302,2]
[311686710,1705331451215,-200.0,0.00030212,2]
[311686711,1705331451224,-202.0,0.00030235,13]
[311686712,1705331451234,-1480.371682,0.000303,2]
[311686713,1705331451243,-500.0,0.00030378,2]
[311686714,1705331451253,-150.29581249,0.00030382,2]
[311686715,1705331451263,-152.06853972,0.00030402,2]
[311686716,1705331451272,-150.10483007,0.00030402,2]
[311686717,1705331451282,-289.08,0.00030616,2]
[311686718,1705331451291,-450.0,0.0003064,3]
[311686719,1705331451300,-200.0,0.00030665,2]
[311686720,1705331451309,-336.68,0.00030686,2]
[311686721,1705331451319,-4904.26526178,0.0003069,2]
[311686722,1705331451328,-150.29581249,0.00030694,2]
[311686723,1705331451338,-151.0,0.00030748,30]
[311686724,1705331451347,-6558.87828015,0.00031,2]
[311686725,1705331452799,-195.14197758,0.00022999,2]
[311686726,1705331452808,-1913.96852331,0.00022999,2]
[311686727,1705331452818,-2630.53475752,0.00031,2]
[311686728,1705331452841,-3043.36461426,0.00031,2]
[311686729,1705331452865,-68844.43784091,0.00031,2]
[311686730,1705331452876,-630.56821528,0.00031,2]
[311686731,1705331453070,-33.22744817,0.00031,2]
[311686732,1705331458989,284.9744775,0.00022101,2]
[311686733,1705331459418,3255.8890189,0.00022101,2]
[311686734,1705331468252,887.25144521,0.00022101,2]
[311686735,1705331798243,165.74,0.00029447,120]
[311686786,1705332279343,172.09,0.00028578,120]
[311686789,1705332311144,250.0,0.000205,2]
[311686817,1705332633240,-423.432,0.00022799,2]
[311686820,1705332637903,-754.27254894,0.00022799,2]
[311686821,1705332637913,-187.43470526,0.00022799,2]
[311686822,1705332637922,-1558.2927458,0.000228,2]
[311686823,1705332638068,-5172.75543542,0.000228,2]
[311686824,1705332638244,-5502.36154572,0.000228,2]
[311686825,1705332638253,-2609.97162441,0.00022899,2]
[311686826,1705332638264,-150.0,0.00023,2]
[311686827,1705332638273,-500.0,0.000247,2]
[311686828,1705332638282,-1350.0,0.00025,3]
[311686829,1705332638291,-1070.18909292,0.00025,2]
[311686830,1705332638301,-374.60559964,0.00025,2]
[311686831,1705332638310,-303.27668532,0.00025,2]
[311686832,1705332638319,-1046.40119915,0.00025449,2]
[311686833,1705332638330,-494.71969858,0.00025449,2]
[311686834,1705332638342,-42.05075489,0.00025449,2]
[311686836,1705332638351,-200.0,0.00025461,2]
[311686837,1705332638361,-1533.77,0.00025461,2]
[311686839,1705332638370,-3110.0,0.000256,2]
[311686842,1705332638384,-117.10496496,0.00026,2]
[311687134,1705332641152,-871.19482584,0.00026,2]
[311687136,1705332641163,-1143.59020439,0.00026,2]
[311687146,1705332641249,-1779.86359794,0.00026,2]
[311687147,1705332641261,-1088.24640687,0.00026,2]
[311687148,1705332641273,-203.33851381,0.00026313,3]
[311687149,1705332641283,-499.99,0.00026313,2]
[311687150,1705332641293,-208.29763724,0.00026357,3]
[311687151,1705332641302,-150.99,0.00026357,2]
[311687152,1705332641312,-366.44,0.00026371,2]
[311687154,1705332641321,-238.42839204,0.00026394,3]
[311687156,1705332641331,-4410.6126942,0.00026404,3]
[311687158,1705332641341,-689.82828543,0.00026425,3]
[311687160,1705332641350,-150.28969324,0.00026435,3]
[311687162,1705332641360,-200.0,0.00026784,2]
[311687164,1705332641370,-1180.26256153,0.00026822,5]
[311687166,1705332641379,-590.01141518,0.00026822,2]
[311687168,1705332641388,-12007.53264004,0.00027,2]
[311687343,1705332642886,-1300.528385,0.00027,2]
[311687345,1705332642895,-734.25233422,0.00027,3]
[311687346,1705332642907,-665.74766578,0.00027,3]
[311687348,1705332642916,-214.0,0.00027036,2]
[311687351,1705332642926,-426.0,0.00027036,2]
[311687354,1705332642935,-996.0,0.00027036,2]
[311687357,1705332642945,-709.10961633,0.00027149,2]
[311687366,1705332642983,-290.89038367,0.00027149,2]
[311687369,1705332642993,-250.0,0.000274,2]
[311687371,1705332643002,-5692.02220698,0.000274,2]
[311687373,1705332643012,-250.0,0.00027869,2]
[311687375,1705332643023,-749.87,0.00027887,2]
[311687377,1705332643033,-162.07,0.00027898,2]
[311687379,1705332643042,-154.11,0.00027899,2]
[311687381,1705332643051,-202.92894676,0.00028084,2]
[311687383,1705332643060,-203.0,0.00028085,2]
[311687385,1705332643069,-500.0,0.00028248,2]
[311687387,1705332643079,-200.0,0.0002828,2]
[311687389,1705332643088,-1685.94,0.00028281,2]
[311687391,1705332643097,-342.03,0.00028281,2]
[311687393,1705332643107,-500.0,0.00028355,2]
[311687395,1705332643118,-750.0,0.00028355,2]
[311687397,1705332643127,-500.0,0.00028355,2]
[311687399,1705332643137,-6452.52,0.00028414,2]
[311687401,1705332643146,-250.0,0.00028469,2]
[311687403,1705332643155,-150.0,0.00028489,2]
[311687405,1705332643164,-250.0,0.00028495,2]
[311687407,1705332643173,-2000.0,0.0002855,2]
[311687409,1705332643183,-200.0,0.00028578,2]
[311687411,1705332643192,-366.44,0.00028635,2]
[311687413,1705332643201,-150.0,0.00028733,2]
[311687415,1705332643210,-750.0,0.000288,2]
[311687417,1705332643220,-162.12,0.00028811,10]
[311687419,1705332643229,-286.46,0.00028811,2]
[311687421,1705332643238,-6140.9,0.00028828,2]
[311687423,1705332643247,-162.43,0.00028905,2]
[311687425,1705332643257,-154.43,0.00028978,2]
[311687427,1705332643266,-1450.0,0.00029,3]
[311687429,1705332643277,-203.0,0.00029024,3]
[311687431,1705332643286,-342.03,0.00029259,2]
[311687433,1705332643296,-508.50114416,0.00029447,2]
[311687436,1705332643305,-159.26,0.00029473,2]
[311687438,1705332643314,-154.43,0.00029482,2]
[311687440,1705332643324,-193.25,0.00029699,2]
[311687442,1705332643333,-3240.40798662,0.000299,2]
[311687460,1705332643492,-599.42491338,0.000299,2]
[311687463,1705332643501,-301.91827366,0.00029929,2]
[311687466,1705332643511,-155.0,0.00029929,2]
[311687469,1705332643522,-203.0,0.00029962,5]
[311687472,1705332643531,-154.43,0.00029985,2]
[311687475,1705332643540,-1000.0,0.00029987,2]
[311687478,1705332643550,-19049.09681299,0.00029998,2]
[311687482,1705332643562,-5015.5806,0.00029998,2]
[311687487,1705332643590,-9999.646528,0.00029998,2]
[311687489,1705332643606,-501.04806448,0.00029998,2]
[311687676,1705332646053,-32330.29724483,0.00029998,2]
[311687677,1705332646065,-1514.26354551,0.00029998,2]
[311687678,1705332647073,-437034.94179106,0.00029998,2]
[311687679,1705332647082,-253.26,0.00029999,2]
[311687680,1705332647091,-357.55520178,0.0003,2]
[311687681,1705332647101,-309.18374779,0.0003,7]
[311687682,1705332647110,-4741.00740011,0.0003,4]
[311687683,1705332647120,-3416.38758488,0.0003,3]
[311687684,1705332647129,-2049.395529,0.0003,3]
[311687685,1705332647140,-2000.0,0.0003,7]
[311687686,1705332647150,-150.0,0.0003,2]
[311687687,1705332647159,-7000.0,0.0003,7]
[311687688,1705332647169,-7000.0,0.0003,7]